[Event "*** Qualifier 3: Titled Tuesday 3|2 Blitz"]
[Site "Chess.com"]
[Date "2017.04.18"]
[Round "7"]
[White "juniortay"]
[Black "Wolverine_master"]
[Result "0-1"]
[WhiteElo "2215"]
[BlackElo "1970"]
[TimeControl "180+2"]
[EndTime "14:34:48 PDT"]
[Termination "Wolverine_master won by resignation"]

1. e4 {[%clk 0:03:02]} 1... d5 {[%clk 0:02:59.8]} 2. exd5 {[%clk 0:03:02]} 2...
Qxd5 {[%clk 0:03:01.7]} 3. Nc3 {[%clk 0:03:02.8]} 3... Qd6 {[%clk 0:03:02.5]} 4.
d4 {[%clk 0:03:02.7]} 4... Nf6 {[%clk 0:03:04]} 5. Nf3 {[%clk 0:03:02.5]} 5...
a6 {[%clk 0:03:05.6]} 6. g3 {[%clk 0:02:59.1]} 6... Nc6 {[%clk 0:03:01.5]} 7.
Bf4 {[%clk 0:02:58.6]} 7... Qb4 {[%clk 0:03:01.9]} 8. Qd2 {[%clk 0:02:55.3]}
8... Bg4 {[%clk 0:02:59.1]} 9. Bg2 {[%clk 0:02:54.9]} 9... O-O-O {[%clk
0:02:59.9]} 10. O-O {[%clk 0:02:50.5]} 10... Nxd4 {[%clk 0:02:56.8]} 11. Nxd4
{[%clk 0:02:44.4]} 11... Qxd4 {[%clk 0:02:57.3]} 12. Qc1 {[%clk 0:02:40.7]}
12... e5 {[%clk 0:02:57.4]} 13. Be3 {[%clk 0:02:38.7]} 13... Qc4 {[%clk
0:02:53.4]} 14. a4 {[%clk 0:02:35.3]} 14... Bc5 {[%clk 0:02:53.8]} 15. a5 {[%clk
0:02:36.1]} 15... Bxe3 {[%clk 0:02:34.8]} 16. Qxe3 {[%clk 0:02:38]} 16... Qd4
{[%clk 0:02:36.3]} 17. Qg5 {[%clk 0:02:32.3]} 17... Rhg8 {[%clk 0:02:12.9]} 18.
Ra4 {[%clk 0:02:31.1]} 18... Qd7 {[%clk 0:02:10.9]} 19. Qxe5 {[%clk 0:02:19.2]}
19... Qf5 {[%clk 0:02:00.6]} 20. Qe3 {[%clk 0:02:09.2]} 20... Kb8 {[%clk
0:01:54.2]} 21. Rb4 {[%clk 0:02:06]} 21... Qxa5 {[%clk 0:01:24.2]} 22. Rxb7+
{[%clk 0:01:57.7]} 22... Kc8 {[%clk 0:01:25.5]} 23. Ra7 {[%clk 0:01:11.7]} 23...
Rge8 {[%clk 0:01:17.3]} 24. Ra8+ {[%clk 0:01:01]} 24... Kd7 {[%clk 0:01:18.5]}
25. Rxd8+ {[%clk 0:00:56.8]} 25... Rxd8 {[%clk 0:01:08.8]} 26. Re1 {[%clk
0:00:40.5]} 26... Be6 {[%clk 0:01:06.1]} 27. Rd1+ {[%clk 0:00:22.5]} 27... Ke7
{[%clk 0:00:51]} 28. Rxd8 {[%clk 0:00:24.4]} 28... Kxd8 {[%clk 0:00:52.9]} 29.
h3 {[%clk 0:00:26.1]} 29... Qa1+ {[%clk 0:00:47.4]} 30. Kh2 {[%clk 0:00:26.4]}
30... Qxb2 {[%clk 0:00:48.6]} 31. Qc5 {[%clk 0:00:23.4]} 31... Qb6 {[%clk
0:00:45.4]} 32. Qf8+ {[%clk 0:00:20.7]} 32... Ne8 {[%clk 0:00:42.8]} 33. Ne4
{[%clk 0:00:21.7]} 33... h6 {[%clk 0:00:33.6]} 34. Qa3 {[%clk 0:00:16.6]} 34...
Nd6 {[%clk 0:00:30.4]} 35. Nc5 {[%clk 0:00:17.6]} 35... Nb5 {[%clk 0:00:27.9]}
36. Qb4 {[%clk 0:00:18.1]} 36... a5 {[%clk 0:00:26.4]} 37. Qd4+ {[%clk
0:00:17.1]} 37... Nxd4 {[%clk 0:00:20.6]} 0-1

[Event "*** Qualifier 3: Titled Tuesday 3|2 Blitz"]
[Site "Chess.com"]
[Date "2017.04.18"]
[Round "7"]
[White "GulamaliRises"]
[Black "Konavets"]
[Result "0-1"]
[WhiteElo "2455"]
[BlackElo "2599"]
[TimeControl "180+2"]
[EndTime "14:35:02 PDT"]
[Termination "Konavets won by resignation"]

1. e4 {[%clk 0:03:02]} 1... c5 {[%clk 0:02:59.8]} 2. Nf3 {[%clk 0:03:01.3]} 2...
d6 {[%clk 0:03:01.1]} 3. d4 {[%clk 0:03:00.2]} 3... cxd4 {[%clk 0:03:03]} 4.
Qxd4 {[%clk 0:03:01.6]} 4... Nf6 {[%clk 0:03:02.3]} 5. Nc3 {[%clk 0:02:57.9]}
5... Nfd7 {[%clk 0:03:03.3]} 6. Bg5 {[%clk 0:02:45.5]} 6... Nc6 {[%clk
0:03:04.5]} 7. Qd2 {[%clk 0:02:46.6]} 7... h6 {[%clk 0:03:05.9]} 8. Be3 {[%clk
0:02:38.5]} 8... g5 {[%clk 0:03:06.6]} 9. h4 {[%clk 0:02:37.4]} 9... g4 {[%clk
0:03:07.9]} 10. Nd4 {[%clk 0:02:38.2]} 10... Nde5 {[%clk 0:03:06.2]} 11. O-O-O
{[%clk 0:02:33.9]} 11... Bg7 {[%clk 0:03:07.5]} 12. Be2 {[%clk 0:02:21.6]} 12...
Be6 {[%clk 0:03:05.5]} 13. Nf5 {[%clk 0:02:07.1]} 13... Bxf5 {[%clk 0:03:04.9]}
14. exf5 {[%clk 0:02:09]} 14... Qa5 {[%clk 0:03:06.2]} 15. Kb1 {[%clk
0:02:09.3]} 15... Rc8 {[%clk 0:03:06.4]} 16. Nd5 {[%clk 0:02:08.3]} 16... Qa4
{[%clk 0:03:07.7]} 17. b3 {[%clk 0:01:31.4]} 17... Qa3 {[%clk 0:03:07.7]} 18. c4
{[%clk 0:01:25.4]} 18... Na5 {[%clk 0:02:50.8]} 19. Qb4 {[%clk 0:01:16]} 19...
Qxb4 {[%clk 0:02:37.2]} 20. Nxb4 {[%clk 0:01:17.9]} 20... Nac6 {[%clk 0:02:39]}
21. Nd5 {[%clk 0:01:17.4]} 21... O-O {[%clk 0:02:40.1]} 22. f6 {[%clk
0:01:05.3]} 22... exf6 {[%clk 0:02:39.2]} 23. Bf4 {[%clk 0:01:06]} 23... f5
{[%clk 0:02:39]} 24. Ne3 {[%clk 0:01:07.1]} 24... Ng6 {[%clk 0:02:38.1]} 25.
Bxd6 {[%clk 0:01:07.1]} 25... Rfe8 {[%clk 0:02:39.7]} 26. Bd3 {[%clk 0:01:07.6]}
26... f4 {[%clk 0:02:37.2]} 27. Nxg4 {[%clk 0:01:08.3]} 27... h5 {[%clk
0:02:38.2]} 28. Nh2 {[%clk 0:01:06.3]} 28... Rcd8 {[%clk 0:02:39.6]} 29. c5
{[%clk 0:00:56.3]} 29... Nb4 {[%clk 0:02:34.8]} 30. Bb5 {[%clk 0:00:55.9]} 30...
Re4 {[%clk 0:02:25.4]} 31. Nf3 {[%clk 0:00:55.3]} 31... a6 {[%clk 0:02:11.3]}
32. Bc4 {[%clk 0:00:56.1]} 32... Bf6 {[%clk 0:02:07]} 33. Ng5 {[%clk 0:00:45.7]}
33... Bxg5 {[%clk 0:01:56]} 34. hxg5 {[%clk 0:00:47.6]} 34... h4 {[%clk
0:01:57.7]} 35. Bc7 {[%clk 0:00:48.5]} 35... Rc8 {[%clk 0:01:56.2]} 36. Rd7
{[%clk 0:00:48.9]} 36... Rxc4 {[%clk 0:01:50]} 37. bxc4 {[%clk 0:00:49.8]} 37...
Nf8 {[%clk 0:01:51.7]} 38. Re7 {[%clk 0:00:36.8]} 38... Ng6 {[%clk 0:01:51.6]}
39. Rhe1 {[%clk 0:00:29.2]} 39... Nxe7 {[%clk 0:01:19.3]} 40. Rxe7 {[%clk
0:00:31.1]} 40... f3 {[%clk 0:01:20.8]} 41. gxf3 {[%clk 0:00:30]} 41... h3
{[%clk 0:01:22.2]} 42. Bd6 {[%clk 0:00:27.7]} 42... Nd3 {[%clk 0:01:19.9]} 43.
Kc2 {[%clk 0:00:21.2]} 43... Nxc5 {[%clk 0:01:17.3]} 44. Re1 {[%clk 0:00:20.2]}
44... Ne6 {[%clk 0:01:15.6]} 45. f4 {[%clk 0:00:19.4]} 45... Nxf4 {[%clk
0:01:15.1]} 46. c5 {[%clk 0:00:18.2]} 46... Ne6 {[%clk 0:01:14.9]} 47. Kd3
{[%clk 0:00:06.2]} 47... Nxc5+ {[%clk 0:01:15.8]} 48. Kd4 {[%clk 0:00:08.1]}
48... Ne6+ {[%clk 0:01:16.7]} 49. Kd5 {[%clk 0:00:10]} 49... Kg7 {[%clk
0:01:14.3]} 50. f4 {[%clk 0:00:10.5]} 50... Kg6 {[%clk 0:01:14]} 51. Ke5 {[%clk
0:00:11.4]} 51... Ng7 {[%clk 0:01:13.9]} 52. Rh1 {[%clk 0:00:11.3]} 52... Nf5
{[%clk 0:01:14.3]} 53. Bb4 {[%clk 0:00:09.8]} 53... Rc4 {[%clk 0:01:05.3]} 54.
Bd2 {[%clk 0:00:08]} 54... Rc2 {[%clk 0:01:06.5]} 0-1

[Event "*** Qualifier 3: Titled Tuesday 3|2 Blitz"]
[Site "Chess.com"]
[Date "2017.04.18"]
[Round "7"]
[White "the_drake"]
[Black "FearNoEvil12"]
[Result "0-1"]
[WhiteElo "2194"]
[BlackElo "2125"]
[TimeControl "180+2"]
[EndTime "14:35:09 PDT"]
[Termination "FearNoEvil12 won by checkmate"]

1. e4 {[%clk 0:02:58.2]} 1... a6 {[%clk 0:02:58.9]} 2. d4 {[%clk 0:02:59.2]}
2... b5 {[%clk 0:03:00.3]} 3. a4 {[%clk 0:02:59.9]} 3... b4 {[%clk 0:03:00.2]}
4. a5 {[%clk 0:02:59.3]} 4... Bb7 {[%clk 0:03:00.5]} 5. f3 {[%clk 0:02:59.1]}
5... e6 {[%clk 0:03:01.1]} 6. Be3 {[%clk 0:03:00.2]} 6... Nf6 {[%clk 0:03:01.2]}
7. Qd2 {[%clk 0:02:59.4]} 7... d6 {[%clk 0:03:02.2]} 8. Bc4 {[%clk 0:02:57.5]}
8... Nbd7 {[%clk 0:03:02.8]} 9. Ne2 {[%clk 0:02:57.4]} 9... c5 {[%clk
0:03:02.2]} 10. O-O {[%clk 0:02:56.9]} 10... d5 {[%clk 0:03:02.3]} 11. exd5
{[%clk 0:02:51.3]} 11... exd5 {[%clk 0:03:02.6]} 12. Ba2 {[%clk 0:02:52.7]}
12... c4 {[%clk 0:03:02.9]} 13. Bg5 {[%clk 0:02:46.7]} 13... Be7 {[%clk
0:03:02.8]} 14. Ng3 {[%clk 0:02:46]} 14... O-O {[%clk 0:03:03.8]} 15. Nf5 {[%clk
0:02:46.9]} 15... Re8 {[%clk 0:02:50.6]} 16. Re1 {[%clk 0:02:28.6]} 16... Bf8
{[%clk 0:02:50.1]} 17. Rxe8 {[%clk 0:02:25.1]} 17... Qxe8 {[%clk 0:02:51.6]} 18.
Bf4 {[%clk 0:02:21.8]} 18... Qe6 {[%clk 0:02:48]} 19. Ng3 {[%clk 0:02:16.6]}
19... Re8 {[%clk 0:02:41.1]} 20. Nf1 {[%clk 0:02:16.1]} 20... Qe1 {[%clk
0:02:39.2]} 21. Qf2 {[%clk 0:02:13.9]} 21... Re2 {[%clk 0:02:17.8]} 22. Qxe1
{[%clk 0:02:07.6]} 22... Rxe1 {[%clk 0:02:16.8]} 23. Kf2 {[%clk 0:02:08.1]}
23... Re6 {[%clk 0:02:04.8]} 24. Nbd2 {[%clk 0:02:07.4]} 24... Nh5 {[%clk
0:01:55.4]} 25. Bg3 {[%clk 0:02:05.9]} 25... f5 {[%clk 0:01:54.4]} 26. h4 {[%clk
0:02:00.6]} 26... f4 {[%clk 0:01:50.6]} 27. Bh2 {[%clk 0:02:01.3]} 27... g6
{[%clk 0:01:46.3]} 28. Re1 {[%clk 0:01:57.6]} 28... Rxe1 {[%clk 0:01:45.1]} 29.
Kxe1 {[%clk 0:01:59.5]} 29... Bg7 {[%clk 0:01:45.3]} 30. c3 {[%clk 0:01:59.2]}
30... b3 {[%clk 0:01:37.3]} 31. Bb1 {[%clk 0:01:57]} 31... Bf6 {[%clk
0:01:38.7]} 32. g3 {[%clk 0:01:57.1]} 32... fxg3 {[%clk 0:01:34.5]} 33. Nxg3
{[%clk 0:01:53.7]} 33... Bxh4 {[%clk 0:01:32.9]} 34. Nf1 {[%clk 0:01:54.4]}
34... Nxg3 {[%clk 0:01:30.4]} 35. Bxg3 {[%clk 0:01:54.5]} 35... Bd8 {[%clk
0:01:31.8]} 36. Ne3 {[%clk 0:01:51.8]} 36... Bxa5 {[%clk 0:01:28.5]} 37. f4
{[%clk 0:01:53.3]} 37... Kf7 {[%clk 0:01:23.1]} 38. f5 {[%clk 0:01:53.5]} 38...
Bd8 {[%clk 0:01:20.7]} 39. fxg6+ {[%clk 0:01:53.7]} 39... hxg6 {[%clk
0:01:21.1]} 40. Kf2 {[%clk 0:01:51.3]} 40... a5 {[%clk 0:01:20.9]} 41. Kf3
{[%clk 0:01:49]} 41... Nf6 {[%clk 0:01:18.4]} 42. Bd6 {[%clk 0:01:44.8]} 42...
a4 {[%clk 0:01:15]} 43. Kf4 {[%clk 0:01:42.2]} 43... Ne4 {[%clk 0:00:46.9]} 44.
Nxc4 {[%clk 0:01:36.8]} 44... dxc4 {[%clk 0:00:42.4]} 45. Bxe4 {[%clk
0:01:35.6]} 45... Bxe4 {[%clk 0:00:43.1]} 46. Kxe4 {[%clk 0:01:37.5]} 46... Be7
{[%clk 0:00:41.3]} 47. Kd5 {[%clk 0:01:08.9]} 47... Bxd6 {[%clk 0:00:41.1]} 48.
Kxc4 {[%clk 0:01:10.8]} 48... g5 {[%clk 0:00:34]} 49. Kd3 {[%clk 0:01:11.8]}
49... g4 {[%clk 0:00:33.9]} 50. c4 {[%clk 0:01:13.4]} 50... a3 {[%clk
0:00:31.7]} 51. bxa3 {[%clk 0:01:13.5]} 51... Bxa3 {[%clk 0:00:30.6]} 52. Kc3
{[%clk 0:01:12.4]} 52... b2 {[%clk 0:00:31]} 53. Kc2 {[%clk 0:01:13.8]} 53... g3
{[%clk 0:00:31.8]} 54. c5 {[%clk 0:01:15.3]} 54... Ke6 {[%clk 0:00:30.9]} 55.
Kb1 {[%clk 0:01:13.2]} 55... g2 {[%clk 0:00:30.4]} 56. d5+ {[%clk 0:01:12.3]}
56... Kxd5 {[%clk 0:00:30.4]} 57. Ka2 {[%clk 0:01:13.9]} 57... g1=Q {[%clk
0:00:27.1]} 58. c6 {[%clk 0:01:15.5]} 58... b1=Q+ {[%clk 0:00:25.7]} 59. Kxa3
{[%clk 0:01:12.4]} 59... Qa7# {[%clk 0:00:25.8]} 0-1

[Event "*** Qualifier 3: Titled Tuesday 3|2 Blitz"]
[Site "Chess.com"]
[Date "2017.04.18"]
[Round "7"]
[White "Malev212"]
[Black "penguingm1"]
[Result "1-0"]
[WhiteElo "2452"]
[BlackElo "2567"]
[TimeControl "180+2"]
[EndTime "14:35:18 PDT"]
[Termination "Malev212 won by checkmate"]

1. e4 {[%clk 0:02:50.1]} 1... e5 {[%clk 0:02:59.4]} 2. Nf3 {[%clk 0:02:49.5]}
2... Nc6 {[%clk 0:03:00.5]} 3. d4 {[%clk 0:02:50.3]} 3... exd4 {[%clk
0:03:01.7]} 4. Nxd4 {[%clk 0:02:51.2]} 4... Nf6 {[%clk 0:03:03.2]} 5. Nxc6
{[%clk 0:02:51.7]} 5... bxc6 {[%clk 0:03:05.1]} 6. e5 {[%clk 0:02:52.5]} 6...
Qe7 {[%clk 0:03:06.3]} 7. Qe2 {[%clk 0:02:53.7]} 7... Nd5 {[%clk 0:03:07.5]} 8.
g3 {[%clk 0:02:55.1]} 8... a5 {[%clk 0:03:00.4]} 9. c4 {[%clk 0:02:52.2]} 9...
Ba6 {[%clk 0:02:47.8]} 10. b3 {[%clk 0:02:46.5]} 10... a4 {[%clk 0:02:39.3]} 11.
Bg2 {[%clk 0:02:34.4]} 11... Nb6 {[%clk 0:02:33.3]} 12. Ba3 {[%clk 0:02:22.6]}
12... Qe6 {[%clk 0:02:28.7]} 13. Bxf8 {[%clk 0:02:23]} 13... Kxf8 {[%clk
0:02:27.3]} 14. O-O {[%clk 0:02:16.4]} 14... d5 {[%clk 0:02:26.7]} 15. f4 {[%clk
0:02:08.9]} 15... dxc4 {[%clk 0:02:11.1]} 16. f5 {[%clk 0:02:09.4]} 16... cxb3
{[%clk 0:02:03.4]} 17. fxe6 {[%clk 0:02:00.6]} 17... Bxe2 {[%clk 0:02:03.8]} 18.
Rxf7+ {[%clk 0:02:00.9]} 18... Kg8 {[%clk 0:02:04.5]} 19. Nc3 {[%clk 0:01:56]}
19... b2 {[%clk 0:01:27.9]} 20. Rb1 {[%clk 0:01:53.6]} 20... a3 {[%clk
0:01:28.2]} 21. Nxe2 {[%clk 0:01:50.6]} 21... Nc4 {[%clk 0:01:21.6]} 22. Nc3
{[%clk 0:01:26.2]} 22... Rc8 {[%clk 0:00:48.5]} 23. Re1 {[%clk 0:01:14.3]} 23...
h5 {[%clk 0:00:43.4]} 24. Bxc6 {[%clk 0:01:14.1]} 24... Rh6 {[%clk 0:00:38.5]}
25. Rf4 {[%clk 0:01:09.9]} 25... Nb6 {[%clk 0:00:36.2]} 26. Bd7 {[%clk
0:00:52.9]} 26... Rb8 {[%clk 0:00:32.5]} 27. Nb1 {[%clk 0:00:44]} 27... Ra8
{[%clk 0:00:24.2]} 28. Rb4 {[%clk 0:00:33.7]} 28... Nd5 {[%clk 0:00:21.5]} 29.
Rb3 {[%clk 0:00:31.6]} 29... h4 {[%clk 0:00:20.1]} 30. Nxa3 {[%clk 0:00:29.2]}
30... hxg3 {[%clk 0:00:20.1]} 31. hxg3 {[%clk 0:00:28.8]} 31... Rg6 {[%clk
0:00:21.6]} 32. Nc4 {[%clk 0:00:24.8]} 32... Rxa2 {[%clk 0:00:20.4]} 33. Nxb2
{[%clk 0:00:22.7]} 33... Rg5 {[%clk 0:00:16.9]} 34. Bc6 {[%clk 0:00:21]} 34...
Ne7 {[%clk 0:00:17.7]} 35. Bg2 {[%clk 0:00:18.7]} 35... Ra6 {[%clk 0:00:16.4]}
36. Bh3 {[%clk 0:00:17.6]} 36... Rh5 {[%clk 0:00:16.8]} 37. Kg2 {[%clk
0:00:17.4]} 37... g6 {[%clk 0:00:18.2]} 38. Re2 {[%clk 0:00:16.1]} 38... Kg7
{[%clk 0:00:18.5]} 39. Nd3 {[%clk 0:00:14.3]} 39... Rh8 {[%clk 0:00:17.4]} 40.
Rc3 {[%clk 0:00:12.8]} 40... Nd5 {[%clk 0:00:18.2]} 41. Rc5 {[%clk 0:00:12.9]}
41... Rd8 {[%clk 0:00:13.8]} 42. Nf4 {[%clk 0:00:12]} 42... Ne7 {[%clk
0:00:13.5]} 43. Rxc7 {[%clk 0:00:12]} 43... Kf8 {[%clk 0:00:15.1]} 44. Rf2
{[%clk 0:00:12.2]} 44... Ke8 {[%clk 0:00:16.5]} 45. Rxe7+ {[%clk 0:00:10.7]}
45... Kxe7 {[%clk 0:00:15.8]} 46. Nxg6+ {[%clk 0:00:11.3]} 46... Ke8 {[%clk
0:00:16.7]} 47. Rf8# {[%clk 0:00:10.8]} 1-0

[Event "*** Qualifier 3: Titled Tuesday 3|2 Blitz"]
[Site "Chess.com"]
[Date "2017.04.18"]
[Round "7"]
[White "Drags95"]
[Black "GrigorGrigorov"]
[Result "0-1"]
[WhiteElo "2522"]
[BlackElo "2489"]
[TimeControl "180+2"]
[EndTime "14:35:19 PDT"]
[Termination "GrigorGrigorov won by resignation"]

1. e4 {[%clk 0:03:02]} 1... g6 {[%clk 0:03:00.5]} 2. d4 {[%clk 0:03:02.1]} 2...
Bg7 {[%clk 0:03:01.9]} 3. Nc3 {[%clk 0:03:03.8]} 3... c6 {[%clk 0:03:03.1]} 4.
h4 {[%clk 0:03:01.5]} 4... d5 {[%clk 0:03:03.2]} 5. e5 {[%clk 0:03:01.7]} 5...
h5 {[%clk 0:03:03.1]} 6. Bg5 {[%clk 0:03:01.4]} 6... Nh6 {[%clk 0:03:02]} 7. Nf3
{[%clk 0:02:57]} 7... Bg4 {[%clk 0:03:01.1]} 8. Be2 {[%clk 0:02:51.3]} 8... Nf5
{[%clk 0:02:52.4]} 9. Qd2 {[%clk 0:02:46.9]} 9... Nd7 {[%clk 0:02:45.1]} 10.
O-O-O {[%clk 0:02:47.8]} 10... Nb6 {[%clk 0:02:44.1]} 11. Kb1 {[%clk 0:02:47.9]}
11... Bxf3 {[%clk 0:02:41]} 12. Bxf3 {[%clk 0:02:41.5]} 12... Nc4 {[%clk
0:02:41.8]} 13. Qc1 {[%clk 0:02:43]} 13... Qb6 {[%clk 0:02:39.2]} 14. b3 {[%clk
0:02:38.5]} 14... Nxd4 {[%clk 0:02:29.4]} 15. Na4 {[%clk 0:02:39.5]} 15... Nb5
{[%clk 0:01:59.1]} 16. Nxb6 {[%clk 0:02:21.3]} 16... Nc3+ {[%clk 0:01:58.4]} 17.
Ka1 {[%clk 0:02:20.8]} 17... axb6 {[%clk 0:01:59.7]} 18. a4 {[%clk 0:02:13.8]}
18... Nxe5 {[%clk 0:01:34.1]} 19. Bd2 {[%clk 0:00:55.2]} 19... Nxa4 {[%clk
0:01:00]} 20. Kb1 {[%clk 0:00:52.8]} 20... Nxf3 {[%clk 0:00:40.1]} 21. bxa4
{[%clk 0:00:53.5]} 21... Rxa4 {[%clk 0:00:36.6]} 22. c3 {[%clk 0:00:54.9]} 22...
Ne5 {[%clk 0:00:36.2]} 23. Qc2 {[%clk 0:00:45.9]} 23... b5 {[%clk 0:00:35.3]}
24. Qb3 {[%clk 0:00:41.6]} 24... O-O {[%clk 0:00:28.9]} 25. Kc2 {[%clk
0:00:42.8]} 25... Rfa8 {[%clk 0:00:29.8]} 26. Rb1 {[%clk 0:00:43.8]} 26... Nc4
{[%clk 0:00:30.4]} 27. Bc1 {[%clk 0:00:36.5]} 27... Ra2+ {[%clk 0:00:30.8]} 28.
Bb2 {[%clk 0:00:36]} 28... Na3+ {[%clk 0:00:20.4]} 29. Kd3 {[%clk 0:00:31.5]}
29... Nc4 {[%clk 0:00:20.6]} 30. Rhc1 {[%clk 0:00:17.3]} 30... R8a4 {[%clk
0:00:11]} 31. Re1 {[%clk 0:00:15.6]} 31... e5 {[%clk 0:00:09.8]} 32. f3 {[%clk
0:00:16.2]} 32... f5 {[%clk 0:00:10.3]} 33. Ke2 {[%clk 0:00:17.4]} 33... e4
{[%clk 0:00:08.6]} 34. Kf2 {[%clk 0:00:18.5]} 34... Nd2 {[%clk 0:00:09.5]} 35.
Qc2 {[%clk 0:00:18.6]} 35... Nxb1 {[%clk 0:00:10]} 36. Rxb1 {[%clk 0:00:20.5]}
36... b4 {[%clk 0:00:10.9]} 37. cxb4 {[%clk 0:00:19.2]} 37... Rxb4 {[%clk
0:00:12.2]} 38. Kg3 {[%clk 0:00:19.6]} 38... Rbxb2 {[%clk 0:00:13.1]} 39. Rxb2
{[%clk 0:00:21.5]} 39... Rxb2 {[%clk 0:00:14.5]} 40. Qa4 {[%clk 0:00:22.8]}
40... Be5+ {[%clk 0:00:15.3]} 41. f4 {[%clk 0:00:23.2]} 41... Bg7 {[%clk
0:00:16.2]} 42. Qa8+ {[%clk 0:00:23.3]} 42... Kh7 {[%clk 0:00:17.7]} 43. Qe8
{[%clk 0:00:24.3]} 43... d4 {[%clk 0:00:18.3]} 44. Kh3 {[%clk 0:00:25.7]} 44...
d3 {[%clk 0:00:19.2]} 45. g3 {[%clk 0:00:27.6]} 45... d2 {[%clk 0:00:19.3]} 46.
Qd7 {[%clk 0:00:27]} 46... e3 {[%clk 0:00:20]} 47. Qd3 {[%clk 0:00:26.6]} 47...
c5 {[%clk 0:00:19.1]} 48. Qe2 {[%clk 0:00:27.5]} 48... Rb1 {[%clk 0:00:19.3]}
0-1

[Event "*** Qualifier 3: Titled Tuesday 3|2 Blitz"]
[Site "Chess.com"]
[Date "2017.04.18"]
[Round "7"]
[White "GMMarcinDziuba"]
[Black "djogrodek1"]
[Result "1-0"]
[WhiteElo "2542"]
[BlackElo "2412"]
[TimeControl "180+2"]
[EndTime "14:35:23 PDT"]
[Termination "GMMarcinDziuba won by resignation"]

1. d4 {[%clk 0:03:02]} 1... Nf6 {[%clk 0:02:59.4]} 2. c4 {[%clk 0:03:03]} 2...
e6 {[%clk 0:03:00.9]} 3. g3 {[%clk 0:03:03.6]} 3... d5 {[%clk 0:03:02.4]} 4. Bg2
{[%clk 0:03:04.6]} 4... Be7 {[%clk 0:03:04]} 5. Nf3 {[%clk 0:03:05.9]} 5... O-O
{[%clk 0:03:05.6]} 6. O-O {[%clk 0:03:07.2]} 6... dxc4 {[%clk 0:03:07.3]} 7. Qc2
{[%clk 0:03:07.7]} 7... a6 {[%clk 0:03:08.7]} 8. Qxc4 {[%clk 0:03:08.3]} 8... b5
{[%clk 0:03:09.4]} 9. Qc2 {[%clk 0:03:09.9]} 9... Bb7 {[%clk 0:03:11.3]} 10. Bd2
{[%clk 0:03:10.1]} 10... Be4 {[%clk 0:03:12.9]} 11. Qc1 {[%clk 0:03:11.2]} 11...
c6 {[%clk 0:03:14.5]} 12. Rd1 {[%clk 0:03:10.6]} 12... Nbd7 {[%clk 0:03:04.7]}
13. Nc3 {[%clk 0:03:00.9]} 13... Bg6 {[%clk 0:03:04]} 14. Nh4 {[%clk 0:02:56.4]}
14... Rc8 {[%clk 0:03:02.9]} 15. Nxg6 {[%clk 0:02:55.9]} 15... hxg6 {[%clk
0:03:04.8]} 16. Qb1 {[%clk 0:02:27.4]} 16... Qb6 {[%clk 0:03:01.8]} 17. Be1
{[%clk 0:02:08.3]} 17... Rfd8 {[%clk 0:03:01.5]} 18. a4 {[%clk 0:02:08.9]} 18...
b4 {[%clk 0:02:57.7]} 19. a5 {[%clk 0:02:09.3]} 19... Qa7 {[%clk 0:02:56.1]} 20.
Na4 {[%clk 0:02:09.7]} 20... Qc7 {[%clk 0:02:44.7]} 21. Qc2 {[%clk 0:01:57.9]}
21... Nb8 {[%clk 0:02:07.8]} 22. Nb6 {[%clk 0:01:57.6]} 22... Nd5 {[%clk
0:02:03.6]} 23. Nxc8 {[%clk 0:01:57.5]} 23... Rxc8 {[%clk 0:02:05.5]} 24. e4
{[%clk 0:01:54.1]} 24... Nf6 {[%clk 0:02:06.6]} 25. Qc4 {[%clk 0:01:50.6]} 25...
Nfd7 {[%clk 0:02:06.4]} 26. Bxb4 {[%clk 0:01:48.7]} 26... Bxb4 {[%clk
0:02:05.1]} 27. Qxb4 {[%clk 0:01:49.9]} 27... Nf6 {[%clk 0:02:05.9]} 28. Rac1
{[%clk 0:01:48.4]} 28... Qd7 {[%clk 0:02:05.4]} 29. h3 {[%clk 0:01:45.1]} 29...
Rc7 {[%clk 0:02:06.3]} 30. Rc5 {[%clk 0:01:40.3]} 30... Rb7 {[%clk 0:02:06.6]}
31. Qc3 {[%clk 0:01:41.6]} 31... Qd8 {[%clk 0:02:05.4]} 32. b4 {[%clk
0:01:42.5]} 32... Nfd7 {[%clk 0:02:05.8]} 33. Rc4 {[%clk 0:01:44]} 33... Ne5
{[%clk 0:02:06.2]} 34. Rc5 {[%clk 0:01:39.4]} 34... Ned7 {[%clk 0:02:07.1]} 35.
Rxc6 {[%clk 0:01:31.6]} 35... Nxc6 {[%clk 0:02:07.4]} 36. Qxc6 {[%clk
0:01:33.5]} 36... Rxb4 {[%clk 0:02:01.6]} 37. Qxa6 {[%clk 0:01:22.1]} 37... Nc5
{[%clk 0:02:01.7]} 38. Qc6 {[%clk 0:01:18.3]} 38... Rxd4 {[%clk 0:01:59.4]} 39.
Rxd4 {[%clk 0:01:04.8]} 39... Qxd4 {[%clk 0:02:01.3]} 40. Qb6 {[%clk 0:01:06.2]}
40... Qc3 {[%clk 0:01:28.6]} 41. a6 {[%clk 0:00:58.9]} 41... Qe1+ {[%clk
0:00:41.3]} 42. Bf1 {[%clk 0:00:55.2]} 42... Nxa6 {[%clk 0:00:39.9]} 43. Qxa6
{[%clk 0:00:53.2]} 43... Qxe4 {[%clk 0:00:41.5]} 44. Qc4 {[%clk 0:00:49.1]}
44... Qe5 {[%clk 0:00:40.5]} 45. Qb5 {[%clk 0:00:48.4]} 45... Qf6 {[%clk
0:00:39.7]} 46. h4 {[%clk 0:00:49.2]} 46... Kh7 {[%clk 0:00:40]} 47. Qg5 {[%clk
0:00:47.5]} 47... Qc3 {[%clk 0:00:34.8]} 48. Kg2 {[%clk 0:00:46.9]} 48... Qc6+
{[%clk 0:00:33.6]} 49. Kg1 {[%clk 0:00:48.3]} 49... Qc3 {[%clk 0:00:34.8]} 50.
Qf4 {[%clk 0:00:49.4]} 50... Kg8 {[%clk 0:00:34.5]} 51. Kg2 {[%clk 0:00:50]}
51... Qc6+ {[%clk 0:00:34.9]} 52. Qf3 {[%clk 0:00:51.5]} 52... Qd6 {[%clk
0:00:35.7]} 53. Be2 {[%clk 0:00:51.9]} 53... Qe5 {[%clk 0:00:36.6]} 54. Qe3
{[%clk 0:00:51.5]} 54... Qa5 {[%clk 0:00:31.4]} 55. Bf3 {[%clk 0:00:52.2]} 55...
Qf5 {[%clk 0:00:31.1]} 56. Qe4 {[%clk 0:00:52.6]} 56... Qc5 {[%clk 0:00:30.8]}
57. Qc6 {[%clk 0:00:52.6]} 57... Qd4 {[%clk 0:00:29.6]} 58. Qe8+ {[%clk
0:00:53.2]} 58... Kh7 {[%clk 0:00:30.4]} 59. Qxf7 {[%clk 0:00:54.3]} 1-0